{"text_format":"3","workbook":"xlsx","n_sheets":1,"sheets":["Danh sách Tạp phẩm"],"not_rendered":{"images":1,"external_links":1,"defined_names":3},"read":"whole","date_system":"1900"}

{"sheet":"Danh sách Tạp phẩm","index":0,"n_rows":31,"n_cols":8,"rows_kept":31,"merged":[[1,1,1,2]]}
[null,"Danh sách Tạp phẩm"]
[null,"NGÀY"]
[null,"Đã mua?","Mặt hàng","Danh mục","Số lượng","Giá cả","Thành Tiền","Thương hiệu/Chú thích"]
[null,null,"Cam","Nông sản",null,null,{"$f":"IFERROR(SUM(Danh_sách_Tạp_phẩm[Số lượng]*Danh_sách_Tạp_phẩm[Giá cả]), \"\")","v":{"v":0,"d":"0.00 ₫"}}]
[null,null,"Táo","Nông sản",null,null,{"$f":"IFERROR(SUM(Danh_sách_Tạp_phẩm[Số lượng]*Danh_sách_Tạp_phẩm[Giá cả]), \"\")","v":{"v":0,"d":"0.00 ₫"}}]
[null,null,"Chuối","Nông sản",null,null,{"$f":"IFERROR(SUM(Danh_sách_Tạp_phẩm[Số lượng]*Danh_sách_Tạp_phẩm[Giá cả]), \"\")","v":{"v":0,"d":"0.00 ₫"}}]
[null,null,"Rau diếp","Nông sản",null,null,{"$f":"IFERROR(SUM(Danh_sách_Tạp_phẩm[Số lượng]*Danh_sách_Tạp_phẩm[Giá cả]), \"\")","v":{"v":0,"d":"0.00 ₫"}}]
[null,null,"Cà chua","Nông sản",null,null,{"$f":"IFERROR(SUM(Danh_sách_Tạp_phẩm[Số lượng]*Danh_sách_Tạp_phẩm[Giá cả]), \"\")","v":{"v":0,"d":"0.00 ₫"}},"  "]
[null,null,"Sữa ","Sản phẩm bơ sữa",null,null,{"$f":"IFERROR(SUM(Danh_sách_Tạp_phẩm[Số lượng]*Danh_sách_Tạp_phẩm[Giá cả]), \"\")","v":{"v":0,"d":"0.00 ₫"}}]
[null,null,"Phô mai","Sản phẩm bơ sữa",null,null,{"$f":"IFERROR(SUM(Danh_sách_Tạp_phẩm[Số lượng]*Danh_sách_Tạp_phẩm[Giá cả]), \"\")","v":{"v":0,"d":"0.00 ₫"}}]
[null,null,"Trứng","Sản phẩm bơ sữa",null,null,{"$f":"IFERROR(SUM(Danh_sách_Tạp_phẩm[Số lượng]*Danh_sách_Tạp_phẩm[Giá cả]), \"\")","v":{"v":0,"d":"0.00 ₫"}}]
[null,null,"Phô mai tươi","Sản phẩm bơ sữa",null,null,{"$f":"IFERROR(SUM(Danh_sách_Tạp_phẩm[Số lượng]*Danh_sách_Tạp_phẩm[Giá cả]), \"\")","v":{"v":0,"d":"0.00 ₫"}}]
[null,null,"Thịt bò","Thịt",null,null,{"$f":"IFERROR(SUM(Danh_sách_Tạp_phẩm[Số lượng]*Danh_sách_Tạp_phẩm[Giá cả]), \"\")","v":{"v":0,"d":"0.00 ₫"}}]
[null,null,"Gia cầm","Thịt",null,null,{"$f":"IFERROR(SUM(Danh_sách_Tạp_phẩm[Số lượng]*Danh_sách_Tạp_phẩm[Giá cả]), \"\")","v":{"v":0,"d":"0.00 ₫"}}]
[null,null,"Giăm bông","Thịt",null,null,{"$f":"IFERROR(SUM(Danh_sách_Tạp_phẩm[Số lượng]*Danh_sách_Tạp_phẩm[Giá cả]), \"\")","v":{"v":0,"d":"0.00 ₫"}}]
[null,null,"Nước ép","Đồ uống",null,null,{"$f":"IFERROR(SUM(Danh_sách_Tạp_phẩm[Số lượng]*Danh_sách_Tạp_phẩm[Giá cả]), \"\")","v":{"v":0,"d":"0.00 ₫"}}]
[null,null,"Cà phê","Đồ uống",null,null,{"$f":"IFERROR(SUM(Danh_sách_Tạp_phẩm[Số lượng]*Danh_sách_Tạp_phẩm[Giá cả]), \"\")","v":{"v":0,"d":"0.00 ₫"}}]
[null,null,"Trà","Đồ uống",null,null,{"$f":"IFERROR(SUM(Danh_sách_Tạp_phẩm[Số lượng]*Danh_sách_Tạp_phẩm[Giá cả]), \"\")","v":{"v":0,"d":"0.00 ₫"}}]
[null,null,"Nước","Đồ uống",null,null,{"$f":"IFERROR(SUM(Danh_sách_Tạp_phẩm[Số lượng]*Danh_sách_Tạp_phẩm[Giá cả]), \"\")","v":{"v":0,"d":"0.00 ₫"}}]
[null,null,"Mì","Mì pasta",null,null,{"$f":"IFERROR(SUM(Danh_sách_Tạp_phẩm[Số lượng]*Danh_sách_Tạp_phẩm[Giá cả]), \"\")","v":{"v":0,"d":"0.00 ₫"}}]
[null,null,"Gạo","Mì pasta",null,null,{"$f":"IFERROR(SUM(Danh_sách_Tạp_phẩm[Số lượng]*Danh_sách_Tạp_phẩm[Giá cả]), \"\")","v":{"v":0,"d":"0.00 ₫"}}]
[null,null,"Đồ hộp","Súp",null,null,{"$f":"IFERROR(SUM(Danh_sách_Tạp_phẩm[Số lượng]*Danh_sách_Tạp_phẩm[Giá cả]), \"\")","v":{"v":0,"d":"0.00 ₫"}}]
[null,null,"Đồ trộn khô","Súp",null,null,{"$f":"IFERROR(SUM(Danh_sách_Tạp_phẩm[Số lượng]*Danh_sách_Tạp_phẩm[Giá cả]), \"\")","v":{"v":0,"d":"0.00 ₫"}}]
[null,null,"Bánh mì","Bánh",null,null,{"$f":"IFERROR(SUM(Danh_sách_Tạp_phẩm[Số lượng]*Danh_sách_Tạp_phẩm[Giá cả]), \"\")","v":{"v":0,"d":"0.00 ₫"}}]
[null,null,"Khoai tây chiên","Đồ ăn nhẹ",null,null,{"$f":"IFERROR(SUM(Danh_sách_Tạp_phẩm[Số lượng]*Danh_sách_Tạp_phẩm[Giá cả]), \"\")","v":{"v":0,"d":"0.00 ₫"}}]
[null,null,"Bánh quy xoắn","Đồ ăn nhẹ",null,null,{"$f":"IFERROR(SUM(Danh_sách_Tạp_phẩm[Số lượng]*Danh_sách_Tạp_phẩm[Giá cả]), \"\")","v":{"v":0,"d":"0.00 ₫"}}]
[null,null,"Kem","Đồ ăn nhẹ",null,null,{"$f":"IFERROR(SUM(Danh_sách_Tạp_phẩm[Số lượng]*Danh_sách_Tạp_phẩm[Giá cả]), \"\")","v":{"v":0,"d":"0.00 ₫"}}]
[null,null,"Bánh quy","Đồ ăn nhẹ",null,null,{"$f":"IFERROR(SUM(Danh_sách_Tạp_phẩm[Số lượng]*Danh_sách_Tạp_phẩm[Giá cả]), \"\")","v":{"v":0,"d":"0.00 ₫"}}]
[null,null,"Đĩa giấy","Nhu yếu phẩm",null,null,{"$f":"IFERROR(SUM(Danh_sách_Tạp_phẩm[Số lượng]*Danh_sách_Tạp_phẩm[Giá cả]), \"\")","v":{"v":0,"d":"0.00 ₫"}}]
[null,null,"Khăn ăn","Nhu yếu phẩm",null,null,{"$f":"IFERROR(SUM(Danh_sách_Tạp_phẩm[Số lượng]*Danh_sách_Tạp_phẩm[Giá cả]), \"\")","v":{"v":0,"d":"0.00 ₫"}}]
[{"$nulls":6},{"$f":"SUBTOTAL(109,Danh_sách_Tạp_phẩm[Thành Tiền])","v":{"v":0,"d":"0.00 ₫"}}]